bitfinex/quotes_ETHUSD_20241207
["timestamp","ask_amount","ask_price","bid_price","bid_amount"]
[1733559528345,0.8009,3989.6,3988.7,1.75495]
[1733559528555,0.8009,3989.6,3988.8,0.18704056]
[1733559528865,0.8009,3989.6,3988.9,0.18704056]
[1733559529163,0.8009,3989.6,3989.0,0.18702898]
[1733559529365,0.8009,3989.6,3989.1,0.18702898]
[1733559529561,3.22336568,3989.6,3989.2,0.18702898]
[1733559529715,0.8009,3989.6,3989.3,0.18702898]
[1733559529920,0.8009,3989.6,3989.4,0.18702898]
[1733559530119,0.8009,3989.6,3989.5,0.18702898]
[1733559530341,1.6683662,3989.6,3989.5,0.18702898]
[1733559531263,0.8009,3989.6,3989.5,0.18702898]
[1733559531773,1.66827481,3989.6,3989.5,0.18702898]
[1733559532079,5.44967004,3989.6,3989.5,0.18702898]
[1733559532228,4.1485906,3989.6,3989.5,0.18702898]
[1733559532631,1.75469,3989.4,3988.3,0.18702898]
[1733559532942,2.55568,3989.1,3988.4,0.18702957]
[1733559533130,2.55568,3989.1,3988.5,0.18702957]
[1733559533450,2.55568,3989.1,3988.6,0.18702957]
[1733559533653,2.55568,3989.1,3988.7,0.18702957]
[1733559533894,3.85668034,3989.1,3988.8,0.18702957]
[1733559534211,4.73993975,3989.1,3988.9,0.18702957]
[1733559534360,3.43893941,3989.1,3987.9,1.7553]
[1733559534563,2.55568,3989.1,3988.0,0.1870114]
[1733559534816,2.55568,3989.1,3988.1,0.1870114]
[1733559534991,2.55568,3989.1,3988.2,0.1870114]
[1733559535191,2.55568,3989.1,3988.3,0.1870114]
[1733559535409,2.55568,3989.1,3988.4,0.1870114]
[1733559535566,2.55568,3989.1,3988.5,0.1870114]
[1733559535767,2.55568,3989.1,3988.6,0.1870114]
[1733559536070,2.55568,3989.1,3988.7,0.1870114]
[1733559536265,2.55568,3989.1,3988.8,0.1870114]
[1733559536471,2.55568,3989.1,3988.9,0.1870114]
[1733559536770,0.8009,3989.1,3989.0,0.18697446]
[1733559536996,0.8009,3989.1,3988.0,1.75526]
[1733559537168,0.8009,3989.1,3988.1,0.36249136]
[1733559537370,0.8009,3989.1,3988.2,0.18696536]
[1733559537623,0.8009,3989.1,3988.3,0.18696536]
[1733559537904,0.8009,3989.1,3988.4,0.18696536]
[1733559538207,0.8009,3989.1,3988.5,0.18696536]
[1733559538383,0.8009,3989.1,3988.6,0.18696536]
[1733559538702,1.16138121,3989.1,3988.7,0.18696536]
[1733559539009,1.16138121,3989.1,3988.8,0.18696536]
[1733559539211,1.16138121,3989.1,3988.9,0.18696536]
[1733559539412,1.16138121,3989.1,3987.9,1.7553]
[1733559539573,0.8009,3989.1,3988.0,0.18686162]
[1733559539774,0.8009,3989.1,3988.1,0.18686162]
[1733559540005,0.8009,3989.1,3988.2,0.18686162]
[1733559540313,0.8009,3989.1,3988.3,0.26518965]
[1733559540468,0.8009,3989.1,3988.4,0.26518965]
[1733559540667,0.8009,3989.1,3988.0,1.75526]
[1733559540668,1.88687892,3989.1,3988.5,0.26518965]
[1733559540871,1.88687892,3989.1,3988.6,0.26518965]
[1733559541068,1.88687892,3989.1,3988.7,0.26518965]
[1733559541271,1.88687892,3989.1,3988.8,0.26518965]
[1733559541519,4.11073802,3989.1,3988.9,0.07832803]
[1733559541846,4.11073802,3989.1,3987.8,1.75534]
[1733559542012,4.11073802,3989.1,3987.9,0.26514954]
[1733559542218,4.11073802,3989.1,3988.0,0.26514954]
[1733559542413,4.11073802,3989.1,3988.1,0.26514954]
[1733559542661,4.11073802,3989.1,3988.2,0.26514954]
[1733559542960,4.11073802,3989.1,3988.3,0.26514954]
[1733559543146,4.11073802,3989.1,3988.4,0.26514954]
[1733559543147,3.64165892,3989.1,3988.4,0.26514954]
[1733559543345,3.64165892,3989.1,3988.5,0.26514954]
[1733559543545,3.64165892,3989.1,3988.6,0.26514954]
[1733559543865,3.64165892,3989.1,3988.7,0.26514954]
[1733559544156,3.64165892,3989.1,3987.9,1.7553]
[1733559544355,3.64165892,3989.1,3988.0,0.44061826]
[1733559544563,3.64165892,3989.1,3988.1,0.26508826]
[1733559544747,3.64165892,3989.1,3988.2,0.26508826]
[1733559544958,1.88687892,3989.1,3988.3,0.26508826]
[1733559545158,1.88687892,3989.1,3988.4,0.26508856]
[1733559545364,1.88687892,3989.1,3988.5,0.26508856]
[1733559545538,1.88687892,3989.1,3988.6,0.26508856]
[1733559545882,1.88687892,3989.1,3988.7,0.07832859]
[1733559546060,1.88687892,3989.1,3988.0,0.17553]
[1733559546268,1.88687892,3989.1,3988.1,0.26507746]
[1733559546435,1.88687892,3989.1,3988.2,0.48466421]
[1733559546637,1.88687892,3989.1,3988.3,0.26507746]
[1733559546869,1.88687892,3989.1,3988.4,0.26507746]
[1733559547181,0.8317,3988.6,3988.5,0.26507746]
[1733559547384,1.19896689,3988.6,3988.5,0.26507746]
[1733559547534,2.5867,3988.6,3988.5,0.26507746]
[1733559547739,0.8317,3988.6,3987.2,1.75561]
[1733559547966,1.08597892,3988.2,3987.3,0.07833872]
[1733559548175,1.08597892,3988.2,3987.4,0.07833872]
[1733559548375,1.08597892,3988.2,3987.5,0.07833872]
[1733559548671,1.08597892,3988.2,3987.6,0.07833872]
[1733559548910,1.08597892,3988.2,3987.7,0.07833872]
[1733559549050,1.08597892,3988.2,3987.8,0.07833872]
[1733559549253,0.8317,3988.1,3987.9,0.07833872]
[1733559549441,0.8317,3988.1,3986.8,1.75578]
[1733559549442,1.75526,3988.0,3986.8,1.75578]
[1733559549642,1.08597892,3987.8,3986.9,0.07834579]
[1733559549870,1.08597892,3987.8,3987.0,0.07834579]
[1733559550039,1.08597892,3987.8,3987.1,0.07834579]
[1733559550239,1.08597892,3987.8,3986.3,1.08597892]
[1733559550240,1.08597892,3987.8,3987.2,0.07834579]
[1733559550549,1.75534,3987.9,3987.3,0.07834579]
[1733559550880,1.75534,3987.9,3987.4,0.07834579]
[1733559551182,0.49414586,3987.9,3987.5,0.07834579]
[1733559551386,2.58705,3987.8,3987.6,0.07834579]
[1733559551586,2.58705,3987.8,3986.5,1.75591]
[1733559551776,2.58705,3987.8,3986.6,0.07835224]
[1733559551977,1.7554,3987.7,3986.7,0.07835224]
[1733559552175,1.7554,3987.7,3986.8,0.07835224]
[1733559552374,1.7554,3987.7,3986.9,0.07835224]
[1733559552559,1.7554,3987.7,3987.0,0.07835224]
[1733559552767,1.7554,3987.7,3987.1,0.07835224]
[1733559552952,1.7554,3987.7,3987.2,0.07835224]
[1733559553152,1.7554,3987.7,3987.3,0.07835224]
[1733559553394,2.01411,3987.7,3987.4,0.07835224]
[1733559553622,2.01411,3987.7,3986.2,1.75602]
[1733559553623,0.8317,3987.4,3986.2,1.75602]
[1733559553897,1.75557,3987.3,3986.3,0.07835545]
[1733559554050,1.75557,3987.3,3986.4,0.07835545]
[1733559554051,2.58727,3987.3,3986.4,0.07835545]
[1733559554250,0.8317,3987.1,3985.7,1.75626]
[1733559554476,2.58738,3987.1,3985.8,0.07836539]
[1733559554688,2.58738,3987.1,3985.9,0.07836539]
[1733559554887,2.58738,3987.1,3986.0,0.07836539]
[1733559555197,2.58738,3987.1,3986.1,0.07836539]
[1733559555351,3.14853165,3987.1,3986.2,0.07836539]
[1733559555552,1.39285165,3987.1,3986.3,0.07836539]
[1733559555778,1.39285165,3987.1,3986.4,0.07836539]
[1733559556094,1.39285165,3987.1,3985.7,1.75626]
[1733559556095,1.39285165,3987.1,3986.5,0.07836539]
[1733559556266,1.39285165,3987.1,3986.6,0.07836539]
[1733559556500,1.39285165,3987.1,3986.7,0.07836539]
[1733559556501,0.13928517,3987.0,3986.7,0.07836539]
[1733559556652,0.13928517,3987.0,3985.0,3.35840765]
[1733559556653,2.58749,3986.8,3985.4,1.75639]
[1733559556852,2.58749,3986.8,3985.5,1.83471809]
[1733559557155,2.58749,3986.8,3985.6,0.07836809]
[1733559557349,2.58749,3986.8,3985.7,0.07836809]
[1733559557585,2.58749,3986.8,3985.8,0.07836809]
[1733559557786,2.58749,3986.8,3985.5,1.75635]
[1733559557787,2.58749,3986.8,3985.9,0.07836809]
[1733559557949,2.58749,3986.8,3986.0,0.07836809]
[1733559558153,2.58749,3986.8,3986.1,0.07836809]
[1733559558356,1.75585,3986.7,3986.2,0.07836809]
[1733559558695,1.75585,3986.7,3985.5,1.75635]
[1733559558992,1.75585,3986.7,3985.6,0.07837315]
[1733559559190,1.75585,3986.7,3985.7,0.07837315]
[1733559559397,1.75585,3986.7,3985.8,0.07837315]
[1733559559598,1.75585,3986.7,3985.9,0.07837315]
[1733559559794,1.75591,3986.6,3986.0,0.07837315]
[1733559560098,2.50824,3986.5,3986.1,0.07837315]
[1733559560340,2.50824,3986.5,3984.8,1.75663]
[1733559560509,2.50824,3986.5,3985.3,1.75643]
[1733559560835,0.7523,3986.5,3985.4,0.07837882]
[1733559561021,0.7523,3986.5,3985.5,0.2618597]
[1733559561225,0.7523,3986.5,3985.6,0.07837882]
[1733559561540,0.7523,3986.5,3985.7,0.07837882]
[1733559561830,0.7523,3986.5,3985.8,0.07837882]
[1733559562133,1.75602,3986.3,3985.9,0.07838023]
[1733559562291,0.7523,3986.2,3986.0,0.07838023]
[1733559562631,0.7523,3986.2,3985.1,1.75653]
[1733559562830,0.7523,3986.2,3985.2,0.30903355]
[1733559563015,0.7523,3986.2,3985.3,0.07838055]
[1733559563219,0.7523,3986.2,3985.4,0.07838055]
[1733559563553,0.7523,3986.2,3985.5,0.07838055]
[1733559563713,0.7523,3986.2,3985.6,0.07838055]
[1733559563896,0.7523,3986.2,3985.7,0.07838055]
[1733559564091,0.7523,3986.2,3985.8,0.07838055]
[1733559564293,2.50836,3986.2,3985.9,0.07838055]
[1733559564541,2.50836,3986.2,3985.2,0.230653]
[1733559564747,2.50836,3986.2,3985.3,0.07838145]
[1733559564911,2.50836,3986.2,3985.4,0.07838145]
[1733559565100,2.50836,3986.2,3985.5,0.07838145]
[1733559565430,1.75612,3986.1,3985.6,0.07838145]
[1733559565631,1.75612,3986.1,3985.7,0.07838145]
[1733559565793,2.35441865,3986.2,3984.1,0.12389496]
[1733559565997,0.7523,3985.8,3984.5,1.75677]
[1733559566198,0.7523,3985.8,3984.6,0.07838766]
[1733559566421,0.7523,3985.8,3984.7,0.07838766]
[1733559566636,0.7523,3985.8,3984.8,0.07838766]
[1733559566838,0.7523,3985.8,3984.9,0.07838766]
[1733559567152,2.50855,3985.8,3985.0,0.07838766]
[1733559567299,2.50855,3985.8,3985.1,0.07838766]
[1733559567504,2.50855,3985.8,3985.2,0.07838766]
[1733559567704,2.50855,3985.8,3985.3,0.07838766]
[1733559567930,2.50855,3985.8,3985.4,0.07838766]
[1733559568134,0.7523,3985.8,3984.6,1.75675]
[1733559568424,0.7523,3985.8,3984.1,2.02477136]
[1733559568425,0.7523,3985.4,3984.7,0.07838994]
[1733559568628,0.7523,3985.4,3984.8,0.07838994]
[1733559568955,0.7523,3985.4,3984.9,0.07839837]
[1733559569172,0.7523,3985.4,3984.2,1.75693]
[1733559569453,1.75656,3985.1,3984.3,0.0784016]
[1733559569670,0.7523,3985.0,3984.4,0.0784016]
[1733559569829,0.7523,3985.0,3984.5,0.0784016]
[1733559570009,0.7523,3985.0,3983.9,1.75704]
[1733559570208,0.7523,3985.0,3984.0,0.07840746]
[1733559570517,0.7523,3985.0,3984.6,0.625]
[1733559572019,0.7523,3985.4,3984.6,2.619949]
[1733559572326,2.35441865,3986.2,3984.8,1.75667]
[1733559572327,0.7523,3986.0,3984.8,1.75667]
[1733559572534,0.7523,3986.0,3984.9,0.07840224]
[1733559572712,0.7523,3986.0,3985.0,0.07840224]
[1733559572908,0.7523,3986.0,3984.8,1.75667]
[1733559572909,1.26212605,3986.0,3984.8,1.75667]
[1733559573153,1.26212605,3986.0,3984.9,0.07839815]
[1733559573352,0.50982605,3986.0,3985.0,0.07839867]
[1733559573556,0.7523,3985.9,3984.8,1.75667]
[1733559573767,0.7523,3985.9,3984.9,0.0783988]
[1733559574057,0.7523,3985.9,3985.2,1.75648]
[1733559574227,0.7523,3985.9,3985.3,0.0783988]
[1733559574427,0.7523,3985.9,3985.3,1.75645]
[1733559574636,0.7523,3985.9,3985.3,1.932095]
[1733559574815,0.7523,3985.9,3985.4,0.07838905]
[1733559575015,0.7523,3985.9,3985.3,0.175645]
[1733559575246,0.7523,3985.9,3985.4,0.07838846]
[1733559575463,0.7523,3985.9,3985.5,0.07838846]
[1733559575669,0.7523,3985.9,3985.2,1.75649]
[1733559575853,0.7523,3985.9,3985.3,0.07838758]
[1733559576052,0.7523,3985.9,3985.4,0.07838758]
[1733559576340,0.7523,3985.9,3985.5,0.07839052]
[1733559576541,0.7523,3985.9,3985.2,1.75649]
[1733559576776,0.7523,3985.9,3985.3,0.07839031]
[1733559577077,0.7523,3985.9,3985.4,0.07839031]
[1733559577249,0.7523,3985.9,3985.5,0.07839031]
[1733559577450,0.7523,3985.9,3985.2,1.932139]
[1733559577774,0.7523,3985.9,3985.3,0.07839043]
[1733559577933,0.7523,3985.9,3985.4,0.07839043]
[1733559578133,0.8295,3986.5,3985.7,1.75627]
[1733559578371,1.14789187,3986.5,3985.8,0.07839043]
[1733559578546,1.14789187,3986.5,3985.9,0.07839043]
[1733559578846,1.14789187,3986.5,3986.0,0.07839043]
[1733559579038,1.14789187,3986.5,3985.7,1.75627]
[1733559579252,1.14789187,3986.5,3985.8,0.07837966]
[1733559579453,1.14789187,3986.5,3985.9,0.07837966]
[1733559579774,1.14789187,3986.5,3985.7,1.75627]
[1733559579974,1.14789187,3986.5,3985.8,0.07838262]
[1733559580178,1.14789187,3986.5,3985.9,0.07838262]
[1733559580337,1.14789187,3986.5,3986.0,0.07838299]
[1733559580544,0.8295,3986.2,3985.1,1.7565]
[1733559580743,0.8295,3986.2,3985.2,0.07838346]
[1733559580946,0.8295,3986.2,3985.3,0.07838346]
[1733559581277,0.8295,3986.2,3985.4,0.07838346]
[1733559581584,0.8295,3986.2,3985.5,0.07838346]
[1733559581782,0.8295,3986.2,3985.6,0.07838346]
[1733559581954,0.8295,3986.2,3985.7,0.07838346]
[1733559582281,0.8295,3986.2,3985.8,0.07838408]
[1733559582640,0.8295,3986.2,3985.9,0.07838408]
[1733559582881,0.8295,3986.2,3986.0,0.07838408]
[1733559583189,0.8295,3986.2,3985.3,1.75643]
[1733559583361,0.8295,3986.2,3985.4,1.83478428]
[1733559583565,0.8295,3986.2,3985.5,0.07838428]
[1733559583789,0.8295,3986.2,3985.6,0.07838428]
[1733559583947,0.8295,3986.2,3985.7,0.07838428]
[1733559584150,0.8295,3986.2,3985.8,0.07838428]
[1733559584353,0.8295,3986.2,3985.4,1.7564]
[1733559584354,0.8295,3986.2,3985.9,0.07838428]
[1733559584590,0.8295,3986.2,3986.0,0.07838428]
[1733559584747,0.8295,3986.2,3986.1,0.07838428]
[1733559585700,0.8295,3986.2,3985.4,1.7564]
[1733559585882,0.8295,3986.2,3986.1,0.07838408]
[1733559586063,1.21475416,3986.2,3986.1,0.07838408]
[1733559586574,0.8295,3986.2,3986.1,0.07838408]
[1733559586979,0.8295,3986.2,3986.1,0.07838397]
[1733559589475,0.7524,3986.8,3986.1,0.07838397]
[1733559589674,0.7524,3986.8,3986.2,0.07838397]
[1733559589907,0.7524,3986.8,3986.3,0.07838397]
[1733559590061,0.37524,3986.7,3986.4,0.07838397]
[1733559590264,0.37524,3986.7,3986.5,0.07838397]
[1733559590463,0.37524,3986.7,3985.4,0.02508845]
[1733559590677,0.7524,3986.8,3985.5,1.83472752]
[1733559590979,0.7524,3986.8,3985.7,1.75623]
[1733559591180,0.7524,3986.8,3985.8,0.07837752]
[1733559591406,0.7524,3986.8,3985.9,0.07837752]
[1733559591721,0.7524,3986.8,3986.0,0.07837752]
[1733559591903,1.75581,3986.8,3986.1,0.07837752]
[1733559592071,0.927981,3986.7,3986.2,0.07837752]
[1733559592270,0.927981,3986.7,3986.3,0.07837752]
[1733559592474,0.927981,3986.7,3986.4,0.07837752]
[1733559592809,0.927981,3986.7,3986.5,0.07837752]
[1733559593106,0.927981,3986.7,3985.7,1.75627]
[1733559593302,0.927981,3986.7,3985.8,0.07837817]
[1733559593508,0.927981,3986.7,3985.5,1.68452317]
[1733559593806,0.7524,3986.6,3985.5,1.68452317]
[1733559594010,1.0207791,3986.6,3985.5,1.68452317]
[1733559594167,0.7524,3986.5,3985.5,1.68452317]
[1733559594509,0.7524,3986.5,3985.0,1.75655]
[1733559594510,0.7524,3986.1,3985.0,1.75658]
[1733559595414,0.7524,3985.9,3984.7,1.75668]
[1733559595730,0.7524,3985.7,3984.7,1.75668]
[1733559596069,0.7524,3985.6,3984.6,0.474815]
[1733559596968,1.75636,3985.5,3984.6,0.474815]
[1733559597281,0.7688,3985.3,3984.6,0.32463]
[1733559597485,0.252521,3985.2,3984.6,0.32463]
[1733559598483,0.7688,3985.3,3984.6,0.32463]
[1733559600992,1.75649,3985.3,3984.6,0.32463]
[1733559601214,0.7995,3985.0,3984.6,0.32463]
[1733559603880,0.7995,3985.3,3984.8,1.75666]
[1733559604083,2.10140409,3985.6,3984.9,0.208129]
[1733559604309,0.7995,3985.6,3984.9,1.964749]
[1733559604508,0.7995,3985.6,3985.0,1.75657]
[1733559605993,1.84866206,3985.9,3984.9,0.208129]
[1733559606192,0.86805972,3985.8,3985.2,1.75648]
[1733559606393,0.7995,3985.9,3985.2,1.75648]
[1733559607136,0.7995,3985.9,3985.3,1.75642]
[1733559607834,0.7995,3986.3,3984.9,0.55]
[1733559608000,0.7995,3986.3,3985.7,1.75627]
[1733559608198,0.7995,3986.3,3985.8,0.18724507]
[1733559608400,0.86811118,3986.2,3985.9,0.18724507]
[1733559608634,0.8681505,3986.1,3986.0,0.18724507]
[1733559608797,0.7995,3986.0,3985.1,1.94378507]
[1733559608997,0.7995,3986.0,3985.2,0.18726262]
[1733559609239,0.7995,3986.0,3985.3,0.18726262]
[1733559609439,0.7995,3986.0,3985.4,0.18726262]
[1733559609733,0.7995,3986.0,3985.5,0.18726262]
[1733559609940,1.04916206,3986.3,3985.6,1.94357262]
[1733559609941,0.7995,3986.3,3985.6,1.94357262]
[1733559610099,2.10174782,3986.3,3985.7,1.94353262]
[1733559610296,0.7995,3986.3,3985.8,0.18726262]
[1733559610517,0.7995,3986.3,3985.9,0.18726262]
[1733559610848,0.7995,3986.3,3986.0,0.18726262]
[1733559611027,0.7995,3986.3,3986.1,0.18726262]
[1733559611355,1.3022688,3986.4,3986.2,0.18726262]
[1733559611518,0.86817376,3986.3,3985.9,1.75618]
[1733559611856,1.30225862,3986.4,3986.0,0.18720556]
[1733559612061,1.84866206,3986.6,3986.1,0.18720556]
[1733559612353,1.84866206,3986.6,3986.2,0.18720556]
[1733559612354,0.86814989,3986.5,3986.2,0.18720556]
[1733559612509,1.04916206,3986.8,3986.3,0.18720556]
[1733559612714,0.7995,3986.9,3986.4,0.18720556]
[1733559612916,0.7995,3986.9,3986.5,0.18720556]
[1733559613122,0.7995,3986.9,3986.6,0.18720556]
[1733559613315,1.27203855,3986.9,3986.7,0.18720556]
[1733559613520,0.7995,3986.9,3985.5,1.95071026]
[1733559613724,2.10118519,3987.2,3986.5,1.75592]
[1733559613923,0.7995,3987.2,3986.6,1.9429048]
[1733559614133,1.30168519,3987.3,3986.7,0.1870348]
[1733559614367,0.86770894,3987.2,3986.8,0.1870348]
[1733559614523,1.98906456,3987.1,3985.9,1.75618]
[1733559614726,1.12135562,3987.1,3986.0,0.18697798]
[1733559614968,0.86759087,3987.0,3986.1,0.18697798]
[1733559615123,0.86760083,3986.9,3986.2,0.18701454]
[1733559615560,2.17051768,3987.1,3986.3,0.18701454]
[1733559615772,1.54778673,3987.0,3986.4,0.18701454]
[1733559615951,0.6802488,3987.0,3986.5,0.18701454]
[1733559616155,0.6802488,3987.0,3986.6,0.18701454]
[1733559616353,0.86763036,3986.9,3985.9,1.75615]
[1733559616560,0.6802488,3987.0,3986.0,1.94308074]
[1733559616753,3.47208888,3987.1,3986.2,1.75604]
[1733559616937,0.86755456,3987.0,3986.3,0.18694074]
[1733559617139,2.42292682,3987.1,3986.4,0.18694074]
[1733559617469,0.86754479,3987.0,3986.5,0.18694074]
[1733559617772,0.86754479,3987.0,3986.6,0.18694074]
[1733559617976,0.43396337,3986.9,3986.2,1.75604]
[1733559618175,0.43396337,3986.9,3986.3,0.18689911]
[1733559618361,0.43396337,3986.9,3986.4,0.18689911]
[1733559618680,0.43396337,3986.9,3986.5,0.18689911]
[1733559618830,0.43396337,3986.9,3986.2,1.75603]
[1733559619026,0.28568902,3986.8,3986.3,0.18687862]
[1733559619362,0.28568902,3986.8,3986.4,0.18687862]
[1733559619529,0.28568902,3986.8,3985.7,1.75625]
[1733559619730,0.7576,3986.7,3985.0,1.04366314]
[1733559619975,0.7576,3986.7,3985.3,1.75641]
[1733559620131,0.7576,3986.7,3985.8,1.75619]
[1733559620331,0.7576,3986.7,3985.9,1.75619]
[1733559620544,0.7576,3987.1,3985.8,1.75619]
[1733559620770,0.86736705,3987.0,3986.1,1.75605]
[1733559621275,0.7576,3986.9,3985.4,2.09141731]
[1733559621481,0.7576,3986.9,3985.8,1.75622]
[1733559623955,0.7576,3986.9,3985.9,1.75618]
[1733559624152,0.7576,3986.9,3985.6,0.0250867]
[1733559624350,0.7576,3986.9,3985.6,0.5750867]
[1733559624550,0.7576,3986.9,3986.1,1.75609]
[1733559624969,0.7576,3986.9,3986.1,1.931699]
[1733559625146,0.7576,3986.9,3986.2,1.75605]
[1733559625350,1.80676206,3987.2,3986.5,1.75592]
[1733559625555,0.7576,3987.2,3986.5,1.75592]
[1733559625782,0.8671077,3987.1,3986.3,1.75601]
[1733559626082,0.7576,3987.2,3986.3,1.75601]
[1733559626779,0.7576,3987.2,3985.9,1.75618]
[1733559626780,0.7576,3987.0,3985.9,1.75618]
[1733559627684,0.8107,3986.7,3985.5,1.75635]
[1733559628157,0.8107,3986.6,3985.5,1.75635]
[1733559628486,1.75592,3986.6,3985.2,1.75648]
[1733559628668,2.56667,3986.4,3985.2,1.75648]
[1733559629340,0.41057287,3986.5,3984.6,0.32463]
[1733559629341,0.8107,3986.2,3984.6,0.32463]
[1733559629656,2.56676,3986.2,3984.6,0.32463]
[1733559630784,0.8107,3986.1,3984.6,0.32463]
[1733559630982,0.8107,3986.1,3984.9,1.75662]
[1733559631173,0.8107,3985.9,3984.6,0.32463]
[1733559631542,0.8107,3985.9,3984.4,0.55]
[1733559631739,0.8107,3985.9,3984.9,1.75662]
[1733559631939,0.8107,3985.9,3985.0,0.125422]
[1733559632143,0.8107,3985.9,3985.1,0.12542196]
[1733559632389,0.8107,3985.9,3985.2,0.12542196]
[1733559632570,1.067381,3985.9,3985.3,0.12542196]
[1733559632884,0.08319631,3985.8,3984.9,1.75662]
[1733559633384,0.08319631,3985.8,3985.0,0.12542162]
[1733559633582,0.08319631,3985.8,3985.1,0.12542162]
[1733559633890,0.08319631,3985.8,3985.2,0.12542162]
[1733559634187,0.08319631,3985.8,3985.3,0.12542162]
[1733559634349,0.08319631,3985.8,3984.9,1.75662]
[1733559635043,0.8107,3985.7,3984.5,1.7568]
[1733559635243,1.75632,3985.6,3984.5,1.7568]
[1733559635478,0.8107,3985.4,3984.5,1.7568]
[1733559636060,0.08148635,3985.3,3984.2,1.75689]
[1733559636476,0.8107,3985.2,3984.4,1.75684]
[1733559636659,0.8107,3985.2,3984.5,1.75679]
[1733559636989,0.08145465,3985.1,3984.2,1.7569]
[1733559637145,0.08145465,3985.1,3984.3,1.75688]
[1733559637346,0.08145465,3985.1,3984.4,1.75682]
[1733559640750,0.08145465,3985.1,3984.2,1.75693]
[1733559641300,0.08145465,3985.1,3984.3,1.75689]
[1733559641588,0.08145465,3985.1,3984.1,1.75697]
[1733559641785,0.08145465,3985.1,3983.9,1.75707]
[1733559641948,0.7853,3985.0,3984.0,2.16342]
[1733559642489,0.08115032,3984.9,3984.0,2.16342]
[1733559642851,0.08115032,3984.9,3984.0,1.757]
[1733559643193,0.08115032,3984.9,3983.5,2.35441865]
[1733559643194,0.86643446,3984.8,3983.5,0.55]
[1733559643488,0.86643446,3984.8,3984.6,0.625]
[1733559644010,0.55,3984.7,3984.6,0.625]
[1733559644156,0.6311186,3984.7,3984.6,0.625]
[1733559644352,0.77276046,3984.7,3984.6,0.625]
[1733559645182,1.55806046,3984.7,3984.6,0.625]
[1733559645512,3.31477046,3984.7,3984.6,0.625]
[1733559645654,3.31477046,3984.7,3984.6,0.474815]
[1733559646559,3.31477046,3984.7,3984.6,0.32463]
[1733559647051,36.55806046,3984.7,3984.6,0.32463]
[1733559648395,1.55806046,3984.7,3984.6,0.32463]
[1733559648555,1.4164186,3984.7,3984.6,0.32463]
[1733559652461,36.4164186,3984.7,3984.6,0.32463]
[1733559654409,1.4164186,3984.7,3984.6,0.32463]
[1733559656412,0.8664186,3984.7,3984.6,2.08139]
[1733559656572,0.8664186,3984.7,3984.6,0.32463]
[1733559657099,0.7853,3985.4,3984.6,0.32463]
[1733559657299,3.25455774,3985.4,3984.6,0.32463]
[1733559657604,0.07531515,3985.3,3984.7,0.12544854]
[1733559657800,0.55,3985.2,3984.6,0.32463]
[1733559657991,0.62529929,3985.2,3984.6,0.32463]
[1733559659566,0.62529929,3985.2,3984.7,0.12544701]
[1733559659903,0.62529929,3985.2,3984.8,0.12544701]
[1733559660102,0.62529929,3985.2,3984.6,0.32463]
[1733559660305,0.55,3985.0,3984.7,0.12544705]
[1733559660597,0.62534523,3984.9,3984.8,0.12544705]
[1733559660810,0.55,3984.8,3984.6,0.32463]
[1733559660966,0.55,3984.8,3984.7,0.12544675]
[1733559661168,0.55,3985.0,3984.7,0.12544675]
[1733559661388,0.55,3985.0,3984.8,0.12544675]
[1733559661605,0.55,3985.0,3984.9,0.12544675]
[1733559661771,0.55,3985.0,3984.7,0.12544675]
[1733559661975,0.55,3985.0,3984.6,0.32463]
[1733559663279,0.55,3985.0,3984.7,0.12544738]
[1733559663476,0.55,3985.0,3984.8,0.12544738]
[1733559663696,0.55,3985.0,3984.6,0.32463]
[1733559663697,0.55,3985.0,3984.9,0.12544738]
[1733559664366,0.68051,3985.0,3984.6,0.32463]
[1733559665311,0.55,3985.0,3984.6,0.32463]
[1733559665721,0.55,3985.0,3984.7,0.12544761]
[1733559666027,0.55,3985.0,3984.8,0.12544761]
[1733559666179,0.55,3985.0,3984.9,0.12544761]
[1733559666863,0.55,3985.0,3984.6,0.32463]
[1733559667181,0.55,3985.0,3984.7,0.07840469]
[1733559667375,0.55,3985.0,3984.8,0.07840469]
[1733559667614,0.55,3985.0,3984.9,0.07840469]
[1733559668302,0.55,3985.0,3984.6,0.32463]
[1733559668536,0.55,3985.0,3984.7,0.07840462]
[1733559669030,0.7551,3985.5,3984.8,0.07840462]
[1733559669332,0.7551,3985.5,3984.9,0.07840462]
[1733559669519,0.7551,3985.5,3984.7,1.75671]
[1733559669520,0.7551,3985.5,3985.0,0.07840462]
[1733559669693,0.7551,3985.5,3985.1,0.07840462]
[1733559669894,0.7551,3985.5,3985.2,0.20384231]
[1733559670234,0.7551,3985.5,3985.3,0.20384231]
[1733559670440,0.55,3985.4,3984.7,1.75751]
[1733559670749,0.55,3985.4,3984.8,0.20384011]
[1733559671027,0.55,3985.4,3984.9,0.20384011]
[1733559671231,0.55,3985.4,3985.0,0.20384011]
[1733559671544,0.55,3985.4,3985.1,0.20384011]
[1733559671705,0.55,3985.4,3985.2,0.07840004]
[1733559671907,0.55,3985.4,3985.3,0.07840004]
[1733559672088,1.41753772,3985.4,3985.3,0.20384011]
[1733559672489,1.41786478,3985.4,3985.3,0.20384011]
[1733559672731,1.49344027,3985.4,3985.3,0.20384011]
[1733559672903,2.79351033,3985.4,3985.3,0.20384011]
[1733559673341,4.63555655,3985.4,3985.3,0.20384011]
[1733559673556,3.58639449,3985.4,3985.3,0.20384011]
[1733559673736,4.29332887,3985.4,3985.3,0.20384011]
[1733559673946,3.58926425,3985.4,3985.3,0.20384011]
[1733559674428,5.16406341,3985.4,3985.3,0.20384011]
[1733559674669,6.25206552,3985.4,3985.3,0.20384011]
[1733559675023,6.25291808,3985.4,3985.3,0.20384011]
[1733559675227,3.8843822,3985.4,3985.3,0.20384011]
[1733559676344,5.46003392,3985.4,3985.3,0.20384011]
[1733559677470,3.8843822,3985.4,3985.3,0.20384011]
[1733559678333,5.46003392,3985.4,3985.3,0.20384011]
[1733559678532,5.46003392,3985.4,3985.3,0.20383846]
[1733559678759,5.46222499,3985.4,3985.3,0.20383846]
[1733559679533,5.46222499,3985.4,3985.3,0.39161063]
[1733559680449,5.25491257,3985.4,3985.3,0.39161063]
[1733559680660,6.99064213,3985.4,3985.3,0.39161063]
[1733559681977,6.99064213,3985.4,3985.3,0.39161168]